bitfinex/quotes_SOLUSD_20241020
["timestamp","ask_amount","ask_price","bid_price","bid_amount"]
[1729465829803,43.1961,166.86,166.73,47.68797079]
[1729465830178,43.1961,166.86,166.75,20.0]
[1729465830384,0.89934544,166.86,166.77,20.0]
[1729465830912,0.89934544,166.86,166.77,28.66158668]
[1729465832792,0.89934544,166.86,166.77,20.0]
[1729465833601,0.89934544,166.86,166.77,28.66158668]
[1729465833806,0.89934544,166.86,166.79,20.0]
[1729465835492,0.89934544,166.86,166.79,28.66158668]
[1729465835690,0.89934544,166.86,166.8,20.0]
[1729465836583,0.89934544,166.86,166.77,20.0]
[1729465837104,23.776884,166.85,166.77,20.0]
[1729465838002,0.89934544,166.86,166.77,20.0]
[1729465838306,0.89934544,166.86,166.78,8.66158668]
[1729465838512,0.89934544,166.86,166.79,20.0]
[1729465841403,0.89934544,166.86,166.76,31.52]
[1729465842793,0.89934544,166.86,166.77,20.0]
[1729465844886,0.89934544,166.86,166.77,25.70418411]
[1729465845214,0.89934544,166.86,166.77,33.49960967]
[1729465847006,0.89934544,166.86,166.77,27.79542556]
[1729465847501,4.7924,166.93,166.77,27.79542556]
[1729465847707,23.776884,166.92,166.77,27.79542556]
[1729465849412,23.776884,166.92,166.78,7.79542556]
[1729465849909,23.776884,166.9,166.78,7.79542556]
[1729465850110,4.7932,166.91,166.76,31.52]
[1729465850317,23.776884,166.9,166.76,31.52]
[1729465850916,0.89910039,166.92,166.77,7.79542556]
[1729465850917,23.776884,166.91,166.77,7.79542556]
[1729465851215,23.776884,166.91,166.79,20.0]
[1729465851990,28.569884,166.91,166.79,20.0]
[1729465852610,23.776884,166.91,166.78,12.7006]
[1729465852916,23.776884,166.89,166.78,12.7006]
[1729465854115,23.776884,166.89,166.79,20.0]
[1729465856706,24.67572998,166.89,166.79,20.0]
[1729465857206,0.89884598,166.89,166.79,20.0]
[1729465858786,23.776884,166.88,166.79,20.0]
[1729465858991,0.89884598,166.89,166.79,20.0]
[1729465859299,0.89884598,166.89,166.82,23.776884]
[1729465859498,0.89910039,166.92,166.82,23.776884]
[1729465859499,0.89910039,166.92,166.84,12.8953]
[1729465860616,23.776884,166.96,166.84,12.8953]
[1729465861305,23.776884,166.96,166.85,20.0]
[1729465861694,23.776884,166.97,166.85,20.0]
[1729465861893,44.034,166.98,166.86,32.0309]
[1729465862191,44.034,166.98,166.87,20.0]
[1729465862510,0.89844887,166.99,166.87,20.0]
[1729465862904,0.89844887,166.99,166.87,21.19801237]
[1729465864408,0.89844887,166.99,166.87,20.0]
[1729465864617,0.89844887,166.99,166.88,1.19791708]
[1729465864916,0.89844887,166.99,166.93,20.0]
[1729465865091,0.6122939,167.05,166.93,20.0]
[1729465865290,0.6122939,167.05,166.93,20.1]
[1729465865514,0.6122939,167.05,166.97,20.0]
[1729465865918,0.6122939,167.05,166.96,13.84145118]
[1729465865919,0.6122939,167.05,166.99,20.0]
[1729465874531,0.6122939,167.05,166.98,31.0726]
[1729465876040,23.776884,167.04,166.94,31.5553]
[1729465876212,0.6122939,167.05,166.94,31.5553]
[1729465877720,0.6122939,167.05,166.95,20.0]
[1729465879431,23.776884,167.04,166.95,20.0]
[1729465879739,24.67491112,167.04,166.95,20.0]
[1729465882631,4.7904,167.01,166.93,20.0]
[1729465882832,23.776884,167.01,166.91,20.0]
[1729465883211,23.276884,167.01,166.91,20.0]
[1729465883416,0.89802712,167.04,166.91,20.0]
[1729465884733,5.68722712,167.04,166.91,20.0]
[1729465885045,0.89802712,167.04,166.91,20.0]
[1729465885417,23.776884,167.03,166.91,20.0]
[1729465889011,0.89802712,167.04,166.91,20.0]
[1729465889229,0.89802712,167.04,166.94,12.8293]
[1729465889538,0.89802712,167.04,166.95,20.0]
[1729465893450,0.89802712,167.04,166.94,12.8293]
[1729465894536,0.89802712,167.04,166.95,20.0]
[1729465895838,28.566584,167.03,166.91,20.0]
[1729465896066,23.776884,167.03,166.91,20.0]
[1729465897239,4.7902,167.01,166.9,30.9335]
[1729465897446,23.776884,167.0,166.9,30.9335]
[1729465899323,23.776884,167.0,166.91,20.0]
[1729465903955,28.567184,167.01,166.91,20.0]
[1729465904631,23.776884,167.01,166.91,20.0]
[1729465907757,24.6752866,167.01,166.91,20.0]
[1729465908439,23.776884,167.01,166.91,20.0]
[1729465908628,24.67515193,167.01,166.91,20.0]
[1729465911026,4.7904,167.0,166.9,30.9335]
[1729465911436,23.776884,166.99,166.9,30.9335]
[1729465912041,24.67515006,166.99,166.9,30.9335]
[1729465917327,0.89826606,166.99,166.9,30.9335]
[1729465917523,0.89826606,166.99,166.91,20.0]
[1729465919240,0.89826606,166.99,166.93,20.0]
[1729465919636,0.6122939,167.05,166.96,32.6789]
[1729465919833,0.6122939,167.05,166.97,20.0]
[1729465922131,0.6122939,167.05,166.98,25.07425047]
[1729465922334,0.6122939,167.05,167.03,20.0]
[1729465922534,1e-08,167.05,167.04,82.77140956]
[1729465922737,0.89775008,167.11,167.05,20.0]
[1729465924159,0.89775008,167.11,167.06,2.30911932]
[1729465924348,0.89775008,167.11,167.07,2.30911932]
[1729465924532,43.8194,167.18,167.08,2.30911932]
[1729465924733,43.8194,167.18,167.09,2.30911932]
[1729465924928,0.6122939,167.21,167.1,2.30911932]
[1729465925159,0.6122939,167.21,167.11,22.30911932]
[1729465925341,0.6122939,167.21,167.14,20.0]
[1729465925541,0.6122939,167.21,167.15,2.30911932]
[1729465926532,0.6122939,167.21,167.14,20.0]
[1729465926756,0.6122939,167.21,167.15,2.30240398]
[1729465927262,0.6122939,167.21,167.07,23.776884]
[1729465927562,0.6122939,167.21,167.08,2.30149585]
[1729465927759,23.776884,167.2,167.08,2.30149585]
[1729465928264,23.776884,167.2,167.08,22.30149585]
[1729465928469,23.776884,167.2,167.09,2.30149585]
[1729465929773,23.776884,167.2,167.1,2.30021001]
[1729465929944,23.776884,167.2,167.11,2.30021001]
[1729465930145,23.776884,167.2,167.12,2.30021001]
[1729465930344,23.776884,167.2,167.07,20.0]
[1729465930567,23.776884,167.2,167.08,2.29957388]
[1729465931168,28.561584,167.2,167.08,2.29957388]
[1729465931574,29.45888549,167.2,167.09,2.29957388]
[1729465931867,29.45888549,167.2,167.1,2.29957388]
[1729465932039,29.45888549,167.2,167.06,32.699]
[1729465932243,29.45888549,167.2,167.07,2.29954572]
[1729465932641,29.45888549,167.2,167.07,22.29954572]
[1729465932934,24.67418549,167.2,167.08,2.29954572]
[1729465933537,24.67418549,167.2,167.07,20.0]
[1729465933738,24.67418549,167.2,167.08,2.29674227]
[1729465934147,23.776884,167.18,167.08,2.29674227]
[1729465934463,23.776884,167.18,167.09,2.29674227]
[1729465934758,23.776884,167.18,167.06,32.699]
[1729465934944,23.776884,167.18,167.07,2.29639873]
[1729465935141,24.67425878,167.18,167.07,2.29639873]
[1729465935462,24.67425878,167.18,167.07,22.29639873]
[1729465935650,24.67425878,167.18,167.08,2.29639873]
[1729465937268,24.67425878,167.18,167.09,2.2975974]
[1729465937463,24.67425878,167.18,167.07,20.0]
[1729465937642,24.67425878,167.18,167.08,2.29752383]
[1729465940351,0.89737478,167.18,167.08,2.29752383]
[1729465940956,0.89737478,167.18,167.1,20.0]
[1729465941154,0.89737478,167.18,167.11,2.29752383]
[1729465941569,0.6122939,167.21,167.12,32.8722]
[1729465941868,0.6122939,167.21,167.13,22.28413871]
[1729465942075,0.6122939,167.21,167.13,20.0]
[1729465943574,23.776884,167.2,167.13,20.0]
[1729465943776,24.67410006,167.2,167.13,20.0]
[1729465944553,0.89721606,167.2,167.13,20.0]
[1729465945256,23.776884,167.19,167.13,20.0]
[1729465945449,0.6122939,167.21,167.13,20.0]
[1729465947254,0.6122939,167.21,167.13,15.5]
[1729465950860,0.6122939,167.21,167.12,32.8722]
[1729465952693,0.6122939,167.21,167.13,20.0]
[1729465956880,0.6122939,167.21,167.15,32.8125]
[1729465959071,0.6122939,167.21,167.13,20.0]
[1729465960867,0.6122939,167.21,167.12,32.8722]
[1729465961574,28.561684,167.2,167.12,32.8722]
[1729465961880,23.776884,167.2,167.08,30.9153]
[1729465962090,23.776884,167.2,167.09,2.27831024]
[1729465962258,4.785,167.19,167.09,2.27831024]
[1729465962461,28.561584,167.2,167.08,30.9153]
[1729465962858,23.776884,167.18,167.08,30.9153]
[1729465963269,24.67414995,167.18,167.08,30.9153]
[1729465963468,24.67414995,167.18,167.09,20.0]
[1729465965470,0.89726595,167.18,167.1,2.28004274]
[1729465966069,32.9318,167.19,167.1,2.28004274]
[1729465966584,0.89717349,167.2,167.1,2.28004274]
[1729465967784,0.89717349,167.2,167.11,2.28276897]
[1729465967984,0.89717349,167.2,167.12,2.28276897]
[1729465968185,0.89717349,167.2,167.13,2.28276897]
[1729465968368,0.89717349,167.2,167.14,2.28276897]
[1729465968568,0.89717349,167.2,167.09,20.0]
[1729465968796,0.89717349,167.2,167.1,2.28347411]
[1729465969583,0.6122939,167.21,167.12,20.0]
[1729465969887,0.6122939,167.21,167.13,2.28347411]
[1729465970278,0.56710342,167.21,167.13,2.28347411]
[1729465971069,0.56710342,167.21,167.14,2.28347411]
[1729465971282,0.56710342,167.21,167.11,20.0]
[1729465971490,0.56710342,167.21,167.12,2.28567888]
[1729465972091,0.56710342,167.21,167.13,2.28567888]
[1729465972265,0.56710342,167.21,167.14,2.28567888]
[1729465972470,23.776884,167.2,167.09,26.26541959]
[1729465972664,23.776884,167.2,167.1,2.28697851]
[1729465974575,0.56710342,167.21,167.1,2.28697851]
[1729465975176,0.56710342,167.21,167.11,2.29419683]
[1729465975369,0.56710342,167.21,167.12,2.29419683]
[1729465975589,0.56710342,167.21,167.13,2.29419683]
[1729465975794,0.56710342,167.21,167.14,2.29419683]
[1729465976099,0.56710342,167.21,167.09,20.0]
[1729465976397,0.56710342,167.21,167.1,2.29653503]
[1729465977286,0.56710342,167.21,167.11,2.29653503]
[1729465977588,0.56710342,167.21,167.12,2.29653503]
[1729465977797,0.56710342,167.21,167.13,2.29653503]
[1729465977974,0.56710342,167.21,167.14,2.29653503]
[1729465978170,0.56710342,167.21,167.15,2.29653503]
[1729465978378,0.56710342,167.21,167.16,2.29653503]
[1729465978578,0.56710342,167.21,167.17,2.29653503]
[1729465978786,0.56710342,167.21,167.18,2.29653503]
[1729465978993,0.56710342,167.21,167.11,20.0]
[1729465979192,0.56710342,167.21,167.12,2.28443345]
[1729465979392,0.56710342,167.21,167.13,2.28443345]
[1729465979591,0.56710342,167.21,167.14,2.28443345]
[1729465979895,0.56710342,167.21,167.15,2.28443345]
[1729465980094,0.56710342,167.21,167.16,2.28443345]
[1729465980297,0.56710342,167.21,167.17,2.28443345]
[1729465980483,0.56710342,167.21,167.18,2.28443345]
[1729465980668,0.56710342,167.21,167.19,2.28443345]
[1729465980868,0.56710342,167.21,167.2,2.28443345]
[1729465981072,0.56710342,167.21,167.12,2.28443345]
[1729465981293,0.56710342,167.21,167.13,2.28443345]
[1729465981294,53.829684,167.2,167.13,2.28443345]
[1729465981499,53.829684,167.2,167.14,2.28443345]
[1729465981692,53.829684,167.2,167.06,30.9382]
[1729465981693,0.56710342,167.21,167.15,2.28443345]
[1729465982006,0.56710342,167.21,167.16,2.28443345]
[1729465982185,0.56710342,167.21,167.17,2.28443345]
[1729465982501,0.56710342,167.21,167.18,2.28443345]
[1729465982673,0.56710342,167.21,167.13,30.9382]
[1729465982674,0.56710342,167.21,167.19,2.28443345]
[1729465982873,0.56710342,167.21,167.2,2.28443345]
[1729465983891,0.56710342,167.21,167.2,33.22263345]
[1729465984203,0.56710342,167.21,167.2,53.22263345]
[1729465984501,0.56710342,167.21,167.2,76.99951745]
[1729465985275,0.56710342,167.21,167.2,77.09951745]
[1729465985499,0.56710342,167.21,167.2,76.99951745]
[1729465985704,0.56710342,167.21,167.2,69.14450512]
[1729465986005,0.56710342,167.21,167.2,69.24450512]
[1729465986785,29.9633022,167.25,167.21,43.776884]
[1729465986985,29.9633022,167.25,167.21,44.97227736]
[1729465987505,29.9633022,167.25,167.21,20.0]
[1729465988696,29.9633022,167.25,167.21,21.19557272]
[1729465989203,29.9633022,167.25,167.23,20.0]
[1729465993985,29.9633022,167.25,167.21,20.0]
[1729465994196,29.9633022,167.25,167.21,21.19553098]
[1729465994598,29.9633022,167.25,167.23,0.1]
[1729465995604,21.25613285,167.25,167.24,23.876884]
[1729465995816,17.65613285,167.25,167.24,43.876884]
[1729465995990,17.65613285,167.25,167.24,56.251784]
[1729465996390,0.4,167.3,167.26,23.876884]
[1729465996688,0.6122939,167.38,167.29,43.776884]
[1729465996880,0.6122939,167.38,167.31,20.0]
[1729465997587,0.6122939,167.38,167.32,2.28021898]
[1729465997792,0.6122939,167.38,167.33,2.28021898]
[1729465997993,0.6122939,167.38,167.3,20.0]
[1729465998309,0.6122939,167.38,167.31,2.27768002]
[1729465999204,0.6122939,167.38,167.32,2.27768002]
[1729465999402,0.6122939,167.38,167.26,6.25481555]
[1729465999403,0.6122939,167.38,167.26,6.35481555]
[1729465999607,0.6122939,167.38,167.27,2.37634169]
[1729465999908,0.6122939,167.38,167.25,32.1062]
[1729465999909,0.6122939,167.38,167.28,2.27634169]
[1729466000104,0.6122939,167.38,167.29,2.27634169]
[1729466000405,0.6122939,167.38,167.3,2.27634169]
[1729466000611,0.6122939,167.38,167.26,20.0]
[1729466000910,30.0569,167.37,167.27,2.27613617]
[1729466002212,30.0569,167.37,167.26,20.0]
[1729466002421,30.0569,167.37,167.27,2.27753713]
[1729466002714,30.0569,167.37,167.28,2.27729566]
[1729466002906,30.0569,167.37,167.29,2.27729566]
[1729466003106,30.0569,167.37,167.26,20.0]
[1729466003314,30.0569,167.37,167.27,2.27735804]
[1729466005014,23.776884,167.36,167.27,2.27735804]
[1729466005626,24.67325594,167.36,167.27,2.27735804]
[1729466005802,0.89637194,167.36,167.26,20.0]
[1729466006000,0.89637194,167.36,167.27,2.27455668]
[1729466009120,0.89637194,167.36,167.26,20.0]
[1729466009329,0.89637194,167.36,167.28,2.27126384]
[1729466009511,0.89637194,167.36,167.26,20.0]
[1729466009712,0.89637194,167.36,167.27,2.27134287]
[1729466010242,23.776884,167.33,167.27,2.27134287]
[1729466010402,23.776884,167.33,167.2,32.6704]
[1729466010727,12.7305,167.34,167.21,9.25834481]
[1729466011024,12.7305,167.34,167.22,2.27264655]
[1729466012102,12.7305,167.34,167.22,22.27264655]
[1729466012319,12.7305,167.34,167.23,2.27264655]
[1729466013628,0.89637194,167.36,167.23,2.27264655]
[1729466014511,0.89637194,167.36,167.25,20.0]
[1729466014706,0.89637194,167.36,167.26,2.27264655]
[1729466014922,0.89637194,167.36,167.25,20.0]
[1729466014923,23.776884,167.35,167.25,20.0]
[1729466015425,23.776884,167.35,167.26,2.2724021]
[1729466015628,23.776884,167.35,167.21,20.0]
[1729466015830,23.776884,167.35,167.22,2.27232799]
[1729466016224,23.776884,167.35,167.23,2.27247193]
[1729466016424,23.776884,167.35,167.24,2.27247193]
[1729466016730,23.776884,167.35,167.25,2.27247193]
[1729466016909,23.776884,167.35,167.26,2.27247193]
[1729466017110,0.89637194,167.36,167.27,2.27486225]
[1729466017313,0.89637194,167.36,167.23,20.0]
[1729466017526,0.89637194,167.36,167.24,2.27421751]
[1729466018133,23.776884,167.35,167.24,2.27421751]
[1729466018639,23.776884,167.35,167.25,2.27421751]
[1729466018834,23.776884,167.35,167.26,2.27421751]
[1729466019010,23.776884,167.35,167.21,20.0]
[1729466019325,23.776884,167.35,167.22,2.27390236]
[1729466020344,23.776884,167.33,167.22,2.27390236]
[1729466021332,23.776884,167.31,167.22,2.27390236]
[1729466021511,28.558584,167.31,167.22,2.27390236]
[1729466021710,28.558584,167.31,167.15,31.8644]
[1729466021930,28.558584,167.31,167.16,2.27652695]
[1729466022136,29.45542303,167.31,167.16,2.27652695]
[1729466022647,4.7819,167.3,167.16,2.27652695]
[1729466022939,23.776884,167.29,167.16,2.27652695]
[1729466023147,28.558984,167.29,167.17,2.27783607]
[1729466023442,28.558984,167.29,167.18,2.27783607]
[1729466023621,28.558984,167.29,167.19,2.27783607]
[1729466023823,28.558984,167.29,167.2,2.27783607]
[1729466024031,28.558984,167.29,167.15,31.8644]
[1729466024228,23.776884,167.3,167.16,2.27989098]
[1729466024931,23.776884,167.3,167.16,22.27989098]
[1729466025249,23.776884,167.3,167.17,2.27989098]
[1729466026644,23.776884,167.3,167.18,2.28274317]
[1729466026938,23.776884,167.3,167.19,2.28274317]
[1729466027139,23.776884,167.3,167.2,2.28274317]
[1729466027440,23.776884,167.3,167.16,20.0]
[1729466027441,23.776884,167.3,167.21,2.28274317]
[1729466027651,23.776884,167.3,167.22,2.28274317]
[1729466027944,23.776884,167.3,167.23,2.28274317]
[1729466028146,23.776884,167.3,167.24,2.28274317]
[1729466028338,23.776884,167.3,167.16,20.0]
[1729466028536,23.776884,167.3,167.17,2.28300502]
[1729466028721,23.776884,167.3,167.18,2.28300502]
[1729466029048,23.776884,167.3,167.19,2.28300502]
[1729466029226,23.776884,167.3,167.2,2.28300502]
[1729466029425,23.776884,167.3,167.21,2.28300502]
[1729466029725,23.776884,167.3,167.22,2.28300502]
[1729466029934,23.776884,167.3,167.23,2.28300502]
[1729466030133,23.776884,167.3,167.24,2.28429009]
[1729466030332,23.776884,167.3,167.16,20.0]
[1729466030544,23.776884,167.3,167.17,2.28456354]
[1729466030741,23.776884,167.3,167.18,2.28456354]
[1729466030954,23.776884,167.3,167.12,6.98569826]
[1729466030955,23.776884,167.26,167.19,2.28456354]
[1729466031242,23.776884,167.26,167.2,2.28456354]
[1729466031442,23.776884,167.26,167.21,2.28456354]
[1729466031626,23.776884,167.26,167.12,32.0905]
[1729466031834,4.7834,167.25,167.13,2.2859981]
[1729466032039,23.776884,167.26,167.14,2.2859981]
[1729466032345,23.776884,167.26,167.15,2.2859981]
[1729466032532,16.9268,167.27,167.16,2.2859981]
[1729466032533,12.1441,167.27,167.16,2.2859981]
[1729466032742,12.1441,167.27,167.17,2.2859981]
[1729466032940,12.1441,167.27,167.18,2.2859981]
[1729466033121,12.1441,167.27,167.19,2.2859981]
[1729466033322,12.1441,167.27,167.2,2.2859981]
[1729466033527,12.1441,167.27,167.21,2.2859981]
[1729466033739,12.1441,167.27,167.22,2.2859981]
[1729466034051,12.1441,167.27,167.23,2.28564463]
[1729466034269,12.1441,167.27,167.24,2.28564463]
[1729466034541,31.5456,167.29,167.25,2.28564463]
[1729466034743,31.5456,167.29,167.16,20.0]
[1729466034926,31.5456,167.29,167.18,20.0]
[1729466035130,31.5456,167.29,167.19,2.28680433]
[1729466035331,31.5456,167.29,167.2,22.28680433]
[1729466035546,31.5456,167.29,167.21,2.28680433]
[1729466036164,36.3278,167.29,167.21,2.28680433]
[1729466036350,31.5456,167.29,167.22,2.28680433]
[1729466036646,31.5456,167.29,167.23,2.28680433]
[1729466036853,23.776884,167.28,167.24,2.28680433]
[1729466037152,23.776884,167.28,167.25,2.29185255]
[1729466037322,24.67377245,167.28,167.16,20.0]
[1729466037526,24.67377245,167.28,167.17,2.29207837]
[1729466037726,24.67377245,167.28,167.18,2.29207837]
[1729466037929,0.89688845,167.28,167.19,2.29207837]
[1729466038155,0.89688845,167.28,167.2,2.29207837]
[1729466038338,0.89688845,167.28,167.16,20.0]
[1729466038339,0.89688845,167.28,167.21,2.29207837]
[1729466038540,0.89688845,167.28,167.22,2.29207837]
[1729466038737,0.89688845,167.28,167.23,2.29207837]
[1729466039054,0.89688845,167.28,167.24,2.29207837]
[1729466039254,0.89688845,167.28,167.25,2.29207837]
[1729466039549,0.89688845,167.28,167.26,2.29207837]
[1729466039848,23.776884,167.27,167.15,32.0911]
[1729466040047,23.776884,167.27,167.16,2.29309657]
[1729466040248,23.776884,167.27,167.15,32.0911]
[1729466040249,23.776884,167.27,167.17,2.29309657]
[1729466040465,23.776884,167.27,167.18,2.29309657]
[1729466040633,23.776884,167.27,167.19,2.29309657]
[1729466040837,23.776884,167.27,167.2,2.29309657]
[1729466041034,23.776884,167.27,167.21,2.29309657]
[1729466041241,23.776884,167.27,167.22,2.29309657]
[1729466041446,23.776884,167.27,167.23,2.29309657]
[1729466041629,23.776884,167.27,167.16,20.0]
[1729466041630,23.776884,167.27,167.24,2.29309657]
[1729466041827,23.776884,167.27,167.25,2.29309657]
[1729466042037,23.776884,167.27,167.26,2.29309657]
[1729466042251,23.776884,167.27,167.17,2.29309657]
[1729466042450,23.776884,167.27,167.18,2.29309657]
[1729466042655,23.776884,167.27,167.19,2.29309657]
[1729466042864,23.776884,167.27,167.16,20.0]
[1729466043057,23.776884,167.27,167.17,2.29656077]
[1729466043241,23.776884,167.27,167.16,20.0]
[1729466043242,28.559584,167.27,167.16,20.0]
[1729466043443,28.559584,167.27,167.17,2.29710068]
[1729466043754,28.559584,167.27,167.18,2.29710068]
[1729466043954,23.776884,167.27,167.19,2.29710068]
[1729466044161,0.89688845,167.28,167.2,2.29710068]
[1729466044344,0.89688845,167.28,167.21,2.29710068]
[1729466044665,0.89688845,167.28,167.22,2.29710068]
[1729466044839,0.89688845,167.28,167.23,2.29710068]
[1729466045033,0.89688845,167.28,167.24,2.29710068]
[1729466045262,0.89688845,167.28,167.16,20.0]
[1729466045263,0.89688845,167.28,167.25,2.29710068]
[1729466045434,23.776884,167.27,167.26,2.29710068]
[1729466046037,28.559684,167.27,167.17,2.29710068]
[1729466046238,36.973284,167.27,167.18,2.29710068]
[1729466046460,23.776884,167.25,167.19,2.29435724]
[1729466046665,23.776884,167.25,167.2,2.29435724]
[1729466046862,24.6739122,167.25,167.21,2.29435724]
[1729466047056,24.6739122,167.25,167.22,2.29435724]
[1729466047359,24.6739122,167.25,167.23,2.29435724]
[1729466047543,24.6739122,167.25,167.24,2.29435724]
[1729466048437,24.6739122,167.25,167.13,2.29435724]
[1729466048749,24.6739122,167.25,167.14,2.29435724]
[1729466048950,24.6739122,167.25,167.15,2.29435724]
[1729466049153,24.6739122,167.25,167.16,2.29435724]
[1729466049351,24.6739122,167.25,167.17,2.29435724]
[1729466049557,24.6739122,167.25,167.18,2.29435724]
[1729466049869,29.4572122,167.25,167.19,2.29435724]
[1729466050080,24.6739122,167.25,167.13,2.29435724]
[1729466050373,23.776884,167.21,167.14,2.29435724]
[1729466050570,23.776884,167.21,167.15,2.29435724]
[1729466050865,23.776884,167.19,167.16,2.29435724]
[1729466051055,24.67421188,167.19,167.17,2.29435724]
[1729466051250,29.45911188,167.19,167.07,30.5708]
[1729466051567,29.45911188,167.19,166.99,6.078]
[1729466051568,23.776884,167.17,167.08,2.29397023]
[1729466051754,23.776884,167.17,167.09,2.29397023]
[1729466051953,23.776884,167.17,167.1,2.29397023]
[1729466052145,23.776884,167.17,167.11,2.29397023]
[1729466052462,23.776884,167.17,167.12,2.29397023]
[1729466052660,23.776884,167.17,167.04,22.29397023]
[1729466053044,23.776884,167.17,167.04,20.0]
[1729466053545,31.8566,167.15,167.03,30.5708]
[1729466053745,23.776884,167.14,167.03,30.5708]
[1729466054770,24.67449644,167.14,167.05,2.29323698]
[1729466055979,24.67449644,167.14,167.06,2.29449015]
[1729466056776,24.67449644,167.14,167.04,20.0]
[1729466057160,24.67449644,167.14,167.05,2.29565466]
[1729466057351,24.67449644,167.14,167.06,2.29596994]
[1729466057557,24.67449644,167.14,167.07,2.29596994]
[1729466057763,24.67449644,167.14,167.08,2.29596994]
[1729466058059,24.67449644,167.14,167.09,2.29596994]
[1729466058374,24.67449644,167.14,167.1,2.29596994]
[1729466058567,24.67449644,167.14,167.11,2.29596994]
[1729466058772,24.67449644,167.14,167.05,2.29565466]
[1729466058949,24.67449644,167.14,167.06,2.29140773]
[1729466059553,0.89761244,167.14,167.06,2.29140773]
[1729466061065,0.89761244,167.14,167.07,2.28854481]
[1729466061274,0.89761244,167.14,167.08,2.28854481]
[1729466061567,0.89761244,167.14,167.09,2.28854481]
[1729466061769,23.776884,167.13,167.1,2.28854481]
[1729466061972,23.776884,167.13,167.11,2.28854481]
[1729466062279,0.89761244,167.14,167.05,2.29565466]
[1729466062454,23.776884,167.13,167.06,2.28704682]
[1729466063464,37.033584,167.13,167.06,2.28704682]
[1729466063659,23.776884,167.1,167.06,2.28704682]
[1729466063977,0.89761244,167.14,167.05,2.29565466]
[1729466063978,37.033584,167.06,167.05,2.29565466]
[1729466064178,41.822184,167.06,167.05,2.29565466]
[1729466064361,37.033584,167.06,167.05,2.29565466]
[1729466065062,37.93178356,167.06,167.05,2.29565466]
[1729466067357,37.93178356,167.06,166.93,20.0]
[1729466067658,0.89819956,167.06,166.94,2.28223455]
[1729466067858,0.89819956,167.06,166.95,2.2819912]
[1729466068058,0.89819956,167.06,166.93,20.0]
[1729466068059,0.89819956,167.06,166.94,2.2819912]
[1729466068359,0.89819956,167.06,166.93,20.0]
[1729466068360,0.89819956,167.06,166.95,2.2819912]
[1729466068572,0.89819956,167.06,166.96,2.2819912]
[1729466068777,0.89819956,167.06,166.97,2.2819912]
[1729466068955,0.89819956,167.06,166.93,20.0]
[1729466068956,0.89819956,167.06,166.98,2.2819912]
[1729466069164,0.89819956,167.06,166.99,2.2819912]
[1729466069462,0.89819956,167.06,167.0,2.2819912]
[1729466069778,0.89819956,167.06,167.01,2.2819912]
[1729466069979,0.89819956,167.06,166.96,20.0]
[1729466069980,0.89819956,167.06,167.02,2.2819912]
[1729466070182,0.89819956,167.06,167.03,2.2819912]
[1729466070355,0.89819956,167.06,167.04,2.2819912]
[1729466070563,0.89819956,167.06,166.98,20.0]
[1729466070882,0.89819956,167.06,166.99,2.27562835]
[1729466071063,0.89819956,167.06,167.0,2.27562835]
[1729466071262,0.89819956,167.06,167.01,2.27562835]
[1729466071465,0.89819956,167.06,166.97,2.27562835]
[1729466071671,0.89819956,167.06,166.98,2.27562835]
[1729466071866,0.89819956,167.06,166.99,2.27562835]
[1729466072069,0.89819956,167.06,167.0,2.27562835]
[1729466072283,0.89819956,167.06,167.01,2.27562835]
[1729466072486,0.89819956,167.06,167.02,2.27562835]
[1729466072782,0.89819956,167.06,167.03,2.27562835]
[1729466072984,0.89819956,167.06,166.96,26.01145525]
[1729466073188,0.89819956,167.06,166.97,2.2712723]
[1729466075767,23.776884,167.12,166.97,2.2712723]
[1729466078300,23.776884,167.12,166.96,26.01145525]
[1729466078591,23.776884,167.12,166.97,2.27338904]
[1729466081962,23.776884,167.12,166.98,2.27456839]
[1729466082165,20.0,167.0,166.99,2.27456839]
[1729466082863,20.0,167.0,166.95,42.5247]
[1729466082864,20.0,167.0,166.97,2.27456839]
[1729466083064,20.0,167.0,166.98,2.27456839]
[1729466083378,20.0,167.0,166.95,30.3035]
[1729466083578,20.0,167.0,166.96,2.2741312]
[1729466084269,20.0,167.0,166.96,22.2741312]
[1729466084584,20.0,167.0,166.97,2.2741312]
[1729466084787,20.0,167.0,166.98,2.2741312]